Cogmind - Beta 13 @@@ ROGUE MODE // 2024.04.26 @ 00:11:17 Player: Millea Result: Destroyed by ZL-K0C(R) with Subdweller Beam Cannon Performance ------------- Evolutions (0) 0 Regions Visited (3) 600 Robots Destroyed (27) 135 Value Destroyed (713) 713 Prototype IDs (10) 200 Alien Tech Used (0) 0 Bonus (0) 0 TOTAL SCORE: 1648 Bonus ------- None Cogmind --------- Core Integrity 0/250 Matter 243/300 Energy 195/200 System Corruption 0% Temperature Cool (11) Movement Rolling (95) Ox1 Location -10/Subcaves Parts ------- > --- POWER (1) -------- Subdweller Power Source > --- PROPULSION (2) --- Wheel > --- UTILITY (2) ------ (None) > --- WEAPON (2) ------- Subdweller Beam Cannon > --- INVENTORY (5) ---- Scrap Shield Cobbler Unit Peak State ------------ > --- POWER ------------ Makeshift Power Source > --- PROPULSION ------- Light Treads Subdweller Monowheel > --- UTILITY ---------- Humpback > --- WEAPON ----------- Battle Rifle Subdweller Machine Gun > --- INVENTORY -------- Aluminum Leg Wheel Wheel Heat Sink Disposable Heat Sink Small Storage Unit Subdweller Optics Subdweller Optics Subdweller Optics Scrap Shield Scrap Shield Cobbler Unit Rainbow Chip Subdweller Beam Cannon Subdweller Beam Cannon Light Assault Rifle Subdweller Machine Gun Grenade Launcher Rocket Launcher Scrap Shield Fragment [Rating: 18] Favorites ----------- Power Light Ion Engine Engine Light Ion Engine Propulsion Light Treads Treads Light Treads Wheel Wheel Utility Humpback Device Seismic Detector Storage Humpback Protection Light Armor Plating Weapon Battle Cannon Energy Cannon Subdweller Beam Cannon Ballistic Gun Battle Rifle Ballistic Cannon Battle Cannon Build | -11 -10 -10 -10 ------- Run | Yrd Mat Min Sub Slots Evolved . | . . . . Power . | . . . . Propulsion . | . . . . Utility . | . . . . Weapon . | . . . . Parts Attached 29 | 7 4 . 18 Power 3 | 1 . . 2 Engine 3 | 1 . . 2 Core . | . . . . Reactor . | . . . . Propulsion 9 | 2 1 . 6 Treads 6 | 2 1 . 3 Leg . | . . . . Wheel 3 | . . . 3 Hover . | . . . . Flight . | . . . . Utility 4 | 2 . . 2 Device 1 | 1 . . . Storage 2 | 1 . . 1 Processor . | . . . . Hackware . | . . . . Protection 1 | . . . 1 Artifact . | . . . . Weapon 13 | 2 3 . 8 Energy Gun . | . . . . Energy Cannon 2 | . . . 2 Ballistic Gun 9 | 2 3 . 4 Ballistic Cannon 2 | . . . 2 Launcher . | . . . . Special Weapon . | . . . . Impact Weapon . | . . . . Slashing Weapon . | . . . . Piercing Weapon . | . . . . Special Melee Weapon . | . . . . Unidentified Prototypes . | . . . . Parts Lost 14 | . . . 14 Power 2 | . . . 2 Propulsion 5 | . . . 5 Utility 2 | . . . 2 Weapon 5 | . . . 5 Highest Loss Streak 5 | . . . 5 To Critical Strikes . | . . . . Average Slot Usage (%) 81 | . 97 100 77 Engine 7 | . 14 14 5 Treads 23 | . 28 28 21 Wheel 4 | . . . 5 Device 3 | . 14 14 . Storage 13 | . 14 14 13 Energy Cannon 1 | . . . 1 Ballistic Gun 15 | . 25 28 11 Ballistic Cannon 11 | . . . 14 Naked Turns . | . . . . Heaviest Build 211 | 11 12 12 211 Greatest Support 40 | 40 40 40 40 Greatest Overweight (x) 10 | . . . 10 Average Overweight (x) 4 | . . . 6 Largest Inventory Capacity 35 | 8 8 8 35 Average Capacity 26 | 7 8 8 33 Most Carried 23 | 6 8 8 23 Average Carried 14 | 4 7 7 17 Final Capacity 8 | 8 8 8 5 Final Carried 8 | 6 7 8 4 Class Distribution -------------------- 70% | Hauler-Mutant 29% | Mutant Dominant Class ---------------- Mutant | -10/Materials Mutant | -10/Mines Hauler-Mutant | -10/Subcaves Resources | -11 -10 -10 -10 ----------- Run | Yrd Mat Min Sub Matter Collected 1032 | 276 69 38 649 Remotely . | . . . . Salvage Created 916 | 45 209 38 624 Parts 62 | 5 9 9 39 Haulers Intercepted 2 | . 2 . . Recyclers Shooed 3 | . 3 . . Parts Field Recycled . | . . . . Retrieved Matter . | . . . . Parts Self-Destructed 18 | . . . 18 Prevented . | . . . . Kills | -11 -10 -10 -10 ------- Run | Yrd Mat Min Sub Combat Hostiles Destroyed 22 | . 1 3 18 Guns 15 | . 1 3 11 Cannons 6 | . . . 6 Classes Destroyed 8 | 2 3 1 2 Worker 1 | 1 . . . Tunneler 1 | 1 . . . Hauler 2 | . 2 . . Recycler 1 | . 1 . . Swarmer 6 | . . 3 3 Grunt 3 | . 1 . 2 Artisan 2 | . . . 2 Subdweller 13 | . . . 13 Best Kill Streak 3 | 2 1 2 3 Combat Bots Only 3 | . 1 2 3 Max Kills in Single Turn 1 | 1 1 1 1 Gunslinging . | . . . . Exploded . | . . . . Melee . | . . . . Uniques/NPCs Destroyed . | . . . . Combat | -11 -10 -10 -10 -------- Run | Yrd Mat Min Sub Hostile Shots Fired 163 | . 5 17 141 Missed 40 | . 2 3 35 Damage Taken 2188 | . 60 115 2013 Core 269 | . 10 7 252 Absorbed by Shields . | . . . . Core Remaining (%) 100 | 100 . . . Volleys Fired 135 | 3 31 10 91 Largest 2 | 2 2 2 2 Hottest 105 | 40 40 40 105 Shots Fired 267 | 6 62 20 179 Gun 206 | 6 62 20 118 Cannon 61 | . . . 61 Launcher . | . . . . Special . | . . . . Kinetic 251 | 6 62 20 163 Thermal 16 | . . . 16 Explosive . | . . . . Electromagnetic . | . . . . Robot Hit Streak 18 | 2 9 2 18 Robot Miss Streak 3 | 2 2 3 2 Penetration Max . | . . . . Secondary Targets 3 | . . 1 2 Max Gunslinging Chain 1 | . . 1 1 Shots Hit Robots 164 | 2 44 8 110 Core Hits 52 | 2 9 4 37 Critical Kills 2 | . . . 2 Critical Parts Destroyed . | . . . . Critical Strikes 5 | . . . 5 Meltdown 1 | . . . 1 Destroy 2 | . . . 2 Blast 2 | . . . 2 Melee Attacks . | . . . . Impact . | . . . . Slashing . | . . . . Piercing . | . . . . Sneak Attacks . | . . . . Combat Hostiles . | . . . . Follow-up Attacks . | . . . . Damage Inflicted 2414 | 29 445 85 1855 Guns 1732 | 29 439 85 1179 Cannons 676 | . . . 676 Explosions . | . . . . Melee . | . . . . Ramming 6 | . 6 . . Kinetic 2223 | 29 439 85 1670 Thermal 185 | . . . 185 Explosive . | . . . . Electromagnetic . | . . . . Impact . | . . . . Slashing . | . . . . Piercing . | . . . . Highest Corruption . | . . . . Average Corruption . | . . . . Corruption Purged . | . . . . Corruption Blocked . | . . . . Overload Shots . | . . . . Overflow Damage . | . . . . Projectiles . | . . . . Explosions . | . . . . Melee . | . . . . Knockbacks 7 | . . . 7 Impact . | . . . . Kinetic 5 | . . . 5 Secondary 2 | . . . 2 Self-Inflicted Damage . | . . . . Shots . | . . . . Rammed 4 | . 4 . . Targets Rammed 4 | . 4 . . Kicked . | . . . . Crushed . | . . . . Highest Temperature 33 | . 12 . 33 Average Temperature 10 | . 9 . 11 Received Heat Transfer 306 | . 18 . 288 Siege Activations . | . . . . Robots Corrupted . | . . . . Combat Hostiles . | . . . . Parts Fried . | . . . . Impact Corruptions . | . . . . Robots Melted 1 | . . . 1 Combat Hostiles 1 | . . . 1 Parts Melted . | . . . . Heat Transferred 259 | . . . 259 Parts Sabotaged . | . . . . Parts Stolen . | . . . . Parts Stripped . | . . . . Power Chain Reactions . | . . . . Alert | -11 -10 -10 -10 ------- Run | Yrd Mat Min Sub Peak Influence 121 | 10 78 121 . Initial 6 | . 6 6 . Average 51 | 1 38 81 . Maximum Alert Level . | . . . . Low Security (%) 100 | 100 100 100 . Level 1 . | . . . . Level 2 . | . . . . Level 3 . | . . . . Level 4 . | . . . . Level 5 . | . . . . High Security . | . . . . Max Security . | . . . . Squads Dispatched . | . . . . Investigation . | . . . . Extermination . | . . . . Reinforcement . | . . . . Assault . | . . . . Garrison . | . . . . Intercept . | . . . . Searches Triggered . | . . . . Construction Impeded . | . . . . Haulers Reinforced . | . . . . Active Scanning Responses . | . . . . Cargo Convoy Interrupts . | . . . . Stealth | -11 -10 -10 -10 --------- Run | Yrd Mat Min Sub Distress Signals . | . . . . Communications Jammed . | . . . . Distress Signals . | . . . . Times Spotted 35 | . 6 4 25 Peak Tracking Total 4 | . 2 3 4 Tactical Retreats 3 | . . 1 2 Traps | -11 -10 -10 -10 ------- Run | Yrd Mat Min Sub Traps Triggered 3 | . 2 . 1 Indirectly . | . . . . Trap Hack Attempts . | . . . . Triggered . | . . . . Disarmed . | . . . . Reprogrammed . | . . . . Reused . | . . . . Traps Extracted . | . . . . Installed . | . . . . Triggered . | . . . . Machines | -11 -10 -10 -10 ---------- Run | Yrd Mat Min Sub Machines Disabled 1 | . . . 1 Max in Single Turn 1 | . . . 1 Machines Repaired . | . . . . Machines Dismantled . | . . . . Machines Sabotaged . | . . . . Overloaded Fab Kills . | . . . . Hacking | -11 -10 -10 -10 --------- Run | Yrd Mat Min Sub Machines Accessed 3 | . 2 . 1 Terminals 2 | . 2 . . Fabricators . | . . . . Repair Stations . | . . . . Recycling Units . | . . . . Scanalyzers . | . . . . Garrison Access . | . . . . Total Hacks 13 | . 8 . 5 Successful 6 | . 1 . 5 Failed 6 | . 6 . . Catastrophic . | . . . . Database Lockouts 1 | . 1 . . Manual 8 | . 8 . . Terminals 8 | . 8 . . Fabricators . | . . . . Repair Stations . | . . . . Recycling Units . | . . . . Scanalyzers . | . . . . Garrison Access . | . . . . Terminal Hacks 6 | . 1 . 5 Record 4 | . . . 4 Robot Analysis 1 | . 1 . . Derelict Proto ID Bank 1 | . . . 1 Fabricator Hacks . | . . . . Repair Station Hacks . | . . . . Recycling Unit Hacks . | . . . . Scanalyzer . | . . . . Garrison Access Hacks . | . . . . Unauthorized Hacks . | . . . . Terminals . | . . . . Fabricators . | . . . . Repair Stations . | . . . . Recycling Units . | . . . . Scanalyzers . | . . . . Garrison Access . | . . . . Data Cores Recovered . | . . . . Used . | . . . . Hacking Detections 2 | . 2 . . Full Trace Events 1 | . 1 . . Feedback Events . | . . . . Feedback Blocked . | . . . . Robot Schematics Acquired . | . . . . Robots Built . | . . . . Authchips . | . . . . Time . | . . . . Total Robot Build Rating . | . . . . Part Schematics Acquired . | . . . . Parts Built . | . . . . Authchips . | . . . . Time . | . . . . Total Part Build Rating . | . . . . Parts Repaired . | . . . . Time . | . . . . Parts Recycled . | . . . . Recycled Matter . | . . . . Retrieved Matter . | . . . . Retrieved Components . | . . . . Parts Scanalyzed . | . . . . Part Schematics Acquired . | . . . . Parts Damaged . | . . . . Bothacking | -11 -10 -10 -10 ------------ Run | Yrd Mat Min Sub Used RIF Installer . | . . . . Robots Hacked . | . . . . Non-combat . | . . . . Combat . | . . . . Robot Hacks Applied . | . . . . Relay Couplers Released . | . . . . Fabnet Peak Effective % . | . . . . Robots Rewired . | . . . . Allies Hacked . | . . . . Hacks Repelled . | . . . . Allies | -11 -10 -10 -10 -------- Run | Yrd Mat Min Sub Total Allies . | . . . . Largest Group . | . . . . Highest-Rated Group . | . . . . Highest-Rated Ally . | . . . . Total Orders . | . . . . Ally Attacks . | . . . . Total Damage . | . . . . Kills . | . . . . Allies Corrupted . | . . . . Allies Melted . | . . . . Intel | -11 -10 -10 -10 ------- Run | Yrd Mat Min Sub Robot Analysis Total 1 | . 1 . . Derelict Logs Recovered . | . . . . Drone Launches . | . . . . Drone Recoveries . | . . . . Exploration | -11 -10 -10 -10 ------------- Run | Yrd Mat Min Sub Turns Passed 4499 | 111 569 421 3398 Spaces Moved 1379 | 56 280 155 888 Core 2 | 2 . . . Treads 939 | 54 280 155 450 Legs . | . . . . Wheels 438 | . . . 438 Hover . | . . . . Flight . | . . . . Fastest Speed 50 | 50 160 160 160 Average Speed 280 | 156 160 160 347 Slowest Speed 960 | 160 160 160 960 Overloaded Moves . | . . . . Propulsion Burnouts . | . . . . Robots Hopped . | . . . . Cave-ins Triggered . | . . . . Exploration Rate (%) 38 | 5 49 31 68 Regions Visited 3 Branch Regions 2 Pre-discovered Areas . | . . . . Known Exits Taken . | . . . . Unknown Exits Taken 3 | 1 1 1 . Scrap Searched 2 | . . . 2 Spaces Dug 1 | . . . 1 Terrain Destroyed 5 | . . . 5 Melee . | . . . . Projectile 5 | . . . 5 AOE . | . . . . Terrain Rammed . | . . . . Walls Destroyed . | . . . . Machines Disabled . | . . . . Actions | -11 -10 -10 -10 --------- Run | Yrd Mat Min Sub Total 1751 | 71 345 310 1025 Wait 158 | . 9 145 4 Move 1376 | 55 279 154 888 Hop . | . . . . Pick Up 38 | 6 10 1 21 Fast Attach 13 | 7 2 . 4 Attach 8 | . 1 . 7 Detach . | . . . . Swap 8 | . 1 . 7 Drop 11 | . 8 . 3 Fire 135 | 3 31 10 91 Melee . | . . . . Ram . | . . . . Kick . | . . . . Crush 4 | . 4 . . Escape Stasis . | . . . . Rewire . | . . . . Trap . | . . . . Miscellaneous . | . . . . Route ------- -11/Scrapyard -10/Materials (discovered 3 exits: [*Mat x2] / [*Min]) -10/Mines (discovered 2 exits: [*Mat] / *Sub) -10/Subcaves (discovered 1 exit: [*Rec]) History --------- Turn | Location | Event 50 | -11/Scrapyard | Discovered new exit (range 16) 112 | -11/Scrapyard | Entered Materials 300 | -10/Materials | Build established: Mutant 349 | -10/Materials | Discovered new exit (range 6) 633 | -10/Materials | Discovered new exit (range 9) 636 | -10/Materials | Central database locked down 670 | -10/Materials | Discovered new exit (range 7) 681 | -10/Materials | Entered Mines 740 | -10/Mines | Received a Rocket Launcher from a helpful Derelict 877 | -10/Mines | Discovered new exit (range 6) 1039 | -10/Mines | Discovered new exit (range 5) 1102 | -10/Mines | Entered Subcaves 1319 | -10/Subcaves | Lost 5 parts (1p2n1u1w) 1424 | -10/Subcaves | Shifting Twisted Machinery released Battle Cannon 1590 | -10/Subcaves | Shifting Twisted Machinery released Battle Cannon 1613 | -10/Subcaves | Build established: Hauler-Mutant 1657 | -10/Subcaves | Ambushed by angry Subdweller bent on revenge 1939 | -10/Subcaves | Discovered new exit (range 13) 1943 | -10/Subcaves | A swath of the cavern ceiling suddenly collapsed 1947 | -10/Subcaves | Core integrity fell below 50% 3394 | -10/Subcaves | Visited 4L-MR0's lab 3398 | -10/Subcaves | Core integrity fell below 20% 3455 | -10/Subcaves | Lost 4 parts (2n2w) 3520 | -10/Subcaves | Found Rainbow Chip 3892 | -10/Subcaves | Shifting Twisted Machinery released Sub. Beam Cannon 4180 | -10/Subcaves | Shifting Twisted Machinery released Battle Cannon 4500 | -10/Subcaves | Destroyed by ZL-K0C(R) with Subdweller Beam Cannon Last Messages --------------- 04367_ Subatomizers dissect the Sub. Power Source. 04371_ UC-G44(R) affixes Scrap Shield Fragment to Scrap Shield. 04372_ UC-G44(R) destroyed. 04375_ Acquired 51 matter. 04377_ Acquired 4 matter. 04381_ Subatomizers dissect the Sub. Power Source. 04449_ 7M-M6P(R): "SUBHATE!" 04450_ Mak. Power Source destroyed. 04452_ Sub. Machine Gun destroyed. 04453_ 7M-M6P(R) destroyed. 04468_ Acquired Sub. Power Source. 04483_ WJ-2PI(R) destroyed. 04489_ Sub. Machine Gun shoots sparks and powers down. 04496_ Humpback destroyed. 04496_ Wheel destroyed. 04498_ Battle Rifle destroyed. Map ----- +----------------------------------------------------+ | ####?????????????????????????????????????????????? | | #????????????????????????????????????????????????? | | ##???????????????????????????????????????????????? | | ##??????????????????????????????????????????????? | | # #??????????????????????????????????????????????? | | # ##?????????????????????????????????????????????? | | ## ##????????????????????????????????????????????? | | ?## #????????????????????????????????????????????? | | ## ##?????????????????##?????????????????????????? | | #"# #????????????????? #????????????????????????? | | ####????????????????? ##???????????????????????? | | *#####??????????###### #???????????????????????? | | ## ##?######### ???????????????????????? | | %# ### ## ## ????????????????????????? | | &! ???????????????????????? | | #????????????????????????? | | ## ### ###??????????????????????? | | ### # # #??????????????????????? | | ??## #???????"# ????????????? | | ???# #??????"" ????????????? | | ??# ## ### # #????? "" ????????????? | | ??##?###?## #???? "" ???????????? | | ??????????## ### !#??? "" ???????????? | | ???????????## ### =]##?# "" ???????????? | | ????????????# ## !!!!## "" ??????????? | | ?????????#### ##=]@&]= ""???????????? | | ?????????# ###&&![[ #####??????????????? | | ?????????# #?##%%! #??????????????????? | | ?????????# #??#!! #?????????????????? | | ?????????## #?#[ #?????????????????? | | ??????????# ## #? #????????????????? | | ?????????# #### #### #???????????????? | | ?????????######??### #??# % #??????????????? | | ????????????????????# ##??? | #??????????????? | | ?????????????????????###???? * #?????????????? | | ???????????????????????????? R!#;%= ?????????????? | | ????????????????????????????? ###= ????????????? | | ????????????????????????????? ?? ???????????? | | ????????????????????????????? ???? ?????????????? | | ????????????????????????????? #??????????????????? | | ??????????????????????????????#??????????????????? | | ?????????????????????????????????????????????????? | | ?????????????????????????????????????????????????? | | ?????????????????????????????????????????????????? | | ?????????????????????????????????????????????????? | | ?????????????????????????????????????????????????? | | ?????????????????????????????????????????????????? | | ?????????????????????????????????????????????????? | | ?????????????????????????????????????????????????? | | ?????????????????????????????????????????????????? | +----------------------------------------------------+ Best States ------------- Heat Dissipation 25 Energy Generation 15 Energy Capacity 200 Matter Stores 300 Matter Capacity 300 Sight Range 16 Terrain Scan Density 10 Armor Coverage 150 Evasion (%) 40 Recoil Reduction 2 Item Schematics ----------------- None Robot Schematics ------------------ None Fabricated ------------ Nothing Alien Tech Used ----------------- None Achievements -------------- None Challenges ------------ None Game ------ Seed TiamatMetaPlatform Manual? 0 Play Time 00:15:33 Cumulative 273.9 hours Start 2024.04.25 @ 22:58:52 End 2024.04.26 @ 00:11:17 Sessions 1 Manual Loads 0 Difficulty Rogue Special Mode None Game No. 205 Rogue 205 Adventurer 0 Explorer 0 Win Type - Total 9 Types 6/0/2/1/0/0/0/0/0 Lore% 77 Gallery% 84 Achievement% 71 Wizard Run 0 Options --------- Layout 2 ASCII 1 Keyboard 0 Movement Vi Keybinds 0 Fullscreen 2 Font 24/Smallcaps Map View 50x44 Zoom Use 0% Tactical HUD 1 Map Filters NONE Filters NONE Steam 1 RUN: def72aa6-2566-4d02-aaab-5136f660bc95